[Event "December 19 Late 2023"]
[Site "https://www.chess.com"]
[Date "2023.12.19"]
[Round "11"]
[White "Lazavik, Denis"]
[Black "Deac, Bogdan-Daniel"]
[Result "1/2-1/2"]
[Board "7"]
[TimeControl "180+1"]
[WhiteFideId "13515110"]
[BlackFideId "1226380"]
[WhiteElo "2556"]
[BlackElo "2641"]
[WhiteTeam "BLR"]
[BlackTeam "ROU"]
[WhiteClock "0:00:22"]
[BlackClock "0:00:08"]

1. d4 {[%clk 0:03:00]}  Nf6 {[%clk 0:02:59]} 2. c4 {[%clk 0:03:01]}  e6 {[%clk 0:03:00]} 3. Nc3 {[%clk 0:03:01]}  Bb4 {[%clk 0:02:59]} 4. e3 {[%clk 0:03:01]}  O-O {[%clk 0:02:59]} 5. Bd3 {[%clk 0:03:01]}  d5 {[%clk 0:02:59]} 6. cxd5 {[%clk 0:03:02]}  exd5 {[%clk 0:02:59]} 7. a3 {[%clk 0:03:02]}  Bd6 {[%clk 0:02:58]} 8. Qc2 {[%clk 0:03:03]}  c6 {[%clk 0:02:58]} 9. Nge2 {[%clk 0:03:00]}  Re8 {[%clk 0:02:58]} 10. Bd2 {[%clk 0:03:00]}  Nbd7 {[%clk 0:02:58]} 11. f3 {[%clk 0:02:58]}  c5 {[%clk 0:02:58]} 12. O-O {[%clk 0:02:58]}  a6 {[%clk 0:02:53]} 13. Rad1 {[%clk 0:02:56]}  b5 {[%clk 0:02:52]} 14. dxc5 {[%clk 0:02:52]}  Nxc5 {[%clk 0:02:51]} 15. Bf5 {[%clk 0:02:53]}  Qc7 {[%clk 0:02:39]} 16. h3 {[%clk 0:02:47]}  Ne6 {[%clk 0:02:34]} 17. Be1 {[%clk 0:02:41]}  Bc5 {[%clk 0:01:55]} 18. Bh4 {[%clk 0:01:59]}  Bxe3+ {[%clk 0:01:38]} 19. Kh1 {[%clk 0:01:59]}  g5 {[%clk 0:01:38]} 20. Bg3 {[%clk 0:01:50]}  Nf4 {[%clk 0:01:38]} 21. Nxf4 {[%clk 0:01:28]}  Bxf4 {[%clk 0:01:26]} 22. Bf2 {[%clk 0:01:21]}  Bxf5 {[%clk 0:00:43]} 23. Qxf5 {[%clk 0:01:20]}  Qe5 {[%clk 0:00:43]} 24. Qd3 {[%clk 0:01:20]}  Be3 {[%clk 0:00:41]} 25. Bxe3 {[%clk 0:01:09]}  Qxe3 {[%clk 0:00:40]} 26. Nxd5 {[%clk 0:01:10]}  Nxd5 {[%clk 0:00:40]} 27. Qxd5 {[%clk 0:01:11]}  Qe5 {[%clk 0:00:37]} 28. Qd2 {[%clk 0:01:04]}  Qf6 {[%clk 0:00:17]} 29. Qf2 {[%clk 0:00:55]}  Rad8 {[%clk 0:00:16]} 30. Rc1 {[%clk 0:00:55]}  Rd6 {[%clk 0:00:14]} 31. Rc5 {[%clk 0:00:46]}  h6 {[%clk 0:00:12]} 32. Qg3 {[%clk 0:00:42]}  Rd4 {[%clk 0:00:07]} 33. Rc2 {[%clk 0:00:25]}  Re6 {[%clk 0:00:05]} 34. Kh2 {[%clk 0:00:25]}  Qf4 {[%clk 0:00:05]} 35. Qxf4 {[%clk 0:00:23]}  Rxf4 {[%clk 0:00:06]} 36. Rd1 {[%clk 0:00:23]}  Rc4 {[%clk 0:00:04]} 37. Rxc4 {[%clk 0:00:21]}  bxc4 {[%clk 0:00:05]} 38. Rc1 {[%clk 0:00:21]}  Rb6 {[%clk 0:00:06]} 39. Rxc4 {[%clk 0:00:21]}  Rxb2 {[%clk 0:00:06]} 40. Rc6 {[%clk 0:00:20]}  Kg7 {[%clk 0:00:06]} 41. Rxa6 {[%clk 0:00:20]}  Ra2 {[%clk 0:00:07]} 42. a4 {[%clk 0:00:19]}  h5 {[%clk 0:00:07]} 43. h4 {[%clk 0:00:17]}  gxh4 {[%clk 0:00:06]} 44. Kh3 {[%clk 0:00:17]}  f6 {[%clk 0:00:06]} 45. a5 {[%clk 0:00:17]}  Kg6 {[%clk 0:00:06]} 46. Ra8 {[%clk 0:00:18]}  Ra4 {[%clk 0:00:06]} 47. a6 {[%clk 0:00:18]}  Kg7 {[%clk 0:00:06]} 48. a7 {[%clk 0:00:17]}  Kh7 {[%clk 0:00:06]} 49. Kh2 {[%clk 0:00:12]}  Kg7 {[%clk 0:00:06]} 50. Kg1 {[%clk 0:00:13]}  Ra2 {[%clk 0:00:06]} 51. Kf1 {[%clk 0:00:13]}  Kh7 {[%clk 0:00:05]} 52. Ke1 {[%clk 0:00:14]}  Kg7 {[%clk 0:00:05]} 53. Kd1 {[%clk 0:00:14]}  Ra1+ {[%clk 0:00:05]} 54. Kc2 {[%clk 0:00:14]}  Ra2+ {[%clk 0:00:05]} 55. Kb3 {[%clk 0:00:15]}  Ra1 {[%clk 0:00:06]} 56. Kc4 {[%clk 0:00:15]}  Rc1+ {[%clk 0:00:05]} 57. Kd5 {[%clk 0:00:16]}  Rd1+ {[%clk 0:00:05]} 58. Ke6 {[%clk 0:00:15]}  Re1+ {[%clk 0:00:05]} 59. Kf5 {[%clk 0:00:16]}  Re5+ {[%clk 0:00:05]} 60. Kf4 {[%clk 0:00:16]}  Ra5 {[%clk 0:00:06]} 61. Ke4 {[%clk 0:00:15]}  Ra1 {[%clk 0:00:05]} 62. f4 {[%clk 0:00:15]}  Ra4+ {[%clk 0:00:05]} 63. Kf3 {[%clk 0:00:15]}  Ra3+ {[%clk 0:00:05]} 64. Kf2 {[%clk 0:00:15]}  Ra2+ {[%clk 0:00:05]} 65. Kg1 {[%clk 0:00:16]}  Ra1+ {[%clk 0:00:05]} 66. Kh2 {[%clk 0:00:16]}  Ra3 {[%clk 0:00:06]} 67. f5 {[%clk 0:00:15]}  Kh7 {[%clk 0:00:05]} 68. Kg1 {[%clk 0:00:15]}  Kg7 {[%clk 0:00:04]} 69. Kf2 {[%clk 0:00:16]}  Ra1 {[%clk 0:00:04]} 70. Ke3 {[%clk 0:00:16]}  Ra3+ {[%clk 0:00:04]} 71. Kd4 {[%clk 0:00:16]}  Ra1 {[%clk 0:00:04]} 72. Kd5 {[%clk 0:00:16]}  Rd1+ {[%clk 0:00:04]} 73. Kc6 {[%clk 0:00:17]}  Rc1+ {[%clk 0:00:04]} 74. Kd6 {[%clk 0:00:17]}  Rd1+ {[%clk 0:00:05]} 75. Kc7 {[%clk 0:00:17]}  Rc1+ {[%clk 0:00:05]} 76. Kb6 {[%clk 0:00:17]}  Rb1+ {[%clk 0:00:05]} 77. Kc5 {[%clk 0:00:18]}  Rc1+ {[%clk 0:00:06]} 78. Kd4 {[%clk 0:00:18]}  Rd1+ {[%clk 0:00:06]} 79. Kc3 {[%clk 0:00:19]}  Ra1 {[%clk 0:00:06]} 80. Kb2 {[%clk 0:00:19]}  Ra6 {[%clk 0:00:06]} 81. Kb3 {[%clk 0:00:20]}  Ra1 {[%clk 0:00:07]} 82. Kb4 {[%clk 0:00:20]}  Rb1+ {[%clk 0:00:07]} 83. Kc5 {[%clk 0:00:20]}  Rc1+ {[%clk 0:00:07]} 84. Kd6 {[%clk 0:00:21]}  Rd1+ {[%clk 0:00:08]} 85. Ke6 {[%clk 0:00:21]}  Re1+ {[%clk 0:00:08]} 86. Kd6 {[%clk 0:00:22]}  Rd1+ {[%clk 0:00:08]} 1/2-1/2

[Event "December 19 Late 2023"]
[Site "https://www.chess.com"]
[Date "2023.12.19"]
[Round "11"]
[White "Duda, Jan-Krzysztof"]
[Black "Tari, Aryan"]
[Result "0-1"]
[Board "9"]
[TimeControl "180+1"]
[WhiteFideId "1170546"]
[BlackFideId "1510045"]
[WhiteElo "2775"]
[BlackElo "2577"]
[WhiteTeam "POL"]
[BlackTeam "NOR"]
[WhiteClock "0:00:00"]
[BlackClock "0:00:28"]

1. e4 {[%clk 0:03:00]}  e5 {[%clk 0:02:59]} 2. f4 {[%clk 0:03:01]}  d5 {[%clk 0:02:58]} 3. exd5 {[%clk 0:03:02]}  exf4 {[%clk 0:02:58]} 4. Nf3 {[%clk 0:03:01]}  Nf6 {[%clk 0:02:58]} 5. Bb5+ {[%clk 0:03:00]}  c6 {[%clk 0:02:57]} 6. dxc6 {[%clk 0:02:58]}  Nxc6 {[%clk 0:02:37]} 7. Nc3 {[%clk 0:02:57]}  Bd6 {[%clk 0:02:36]} 8. Qe2+ {[%clk 0:02:52]}  Be6 {[%clk 0:02:18]} 9. Nd4 {[%clk 0:02:51]}  Qd7 {[%clk 0:02:16]} 10. b3 {[%clk 0:02:41]}  O-O {[%clk 0:02:11]} 11. Nxe6 {[%clk 0:02:33]}  Rfe8 {[%clk 0:02:01]} 12. Bc4 {[%clk 0:02:24]}  Na5 {[%clk 0:01:58]} 13. Bb5 {[%clk 0:01:42]}  Nc6 {[%clk 0:01:53]} 14. Bc4 {[%clk 0:01:43]}  Na5 {[%clk 0:01:50]} 15. O-O {[%clk 0:01:43]}  Nxc4 {[%clk 0:01:48]} 16. Qxc4 {[%clk 0:01:42]}  Rxe6 {[%clk 0:01:44]} 17. Qb5 {[%clk 0:01:42]}  Qc7 {[%clk 0:01:30]} 18. Bb2 {[%clk 0:01:36]}  Ng4 {[%clk 0:01:16]} 19. Rad1 {[%clk 0:00:48]}  f3 {[%clk 0:01:04]} 20. Rxf3 {[%clk 0:00:49]}  Bxh2+ {[%clk 0:01:05]} 21. Kf1 {[%clk 0:00:49]}  Bg3 {[%clk 0:00:56]} 22. Rf5 {[%clk 0:00:40]}  Bh4 {[%clk 0:00:46]} 23. Qc5 {[%clk 0:00:22]}  Qg3 {[%clk 0:00:37]} 24. Kg1 {[%clk 0:00:11]}  Rae8 {[%clk 0:00:30]} 25. Qe5 {[%clk 0:00:02]}  Rxe5 {[%clk 0:00:30]} 26. Ne4 {[%clk 0:00:03]}  Rxe4 {[%clk 0:00:29]} 27. Rf6 {[%clk 0:00:00]}  Qh2+ {[%clk 0:00:28]} 0-1

[Event "December 19 Late 2023"]
[Site "https://www.chess.com"]
[Date "2023.12.19"]
[Round "11"]
[White "Bortnyk, Olexandr"]
[Black "mightysmasher"]
[Result "1-0"]
[Board "11"]
[TimeControl "180+1"]
[WhiteFideId "14120828"]
[WhiteElo "2731"]
[BlackElo "2593"]
[WhiteTeam "UKR"]
[WhiteClock "0:00:09"]
[BlackClock "0:00:01"]

1. d4 {[%clk 0:03:00]}  d5 {[%clk 0:02:59]} 2. Nc3 {[%clk 0:03:00]}  Nf6 {[%clk 0:02:59]} 3. Bf4 {[%clk 0:03:00]}  e6 {[%clk 0:02:59]} 4. Nb5 {[%clk 0:02:58]}  Na6 {[%clk 0:02:56]} 5. e3 {[%clk 0:02:58]}  c6 {[%clk 0:02:56]} 6. Nc3 {[%clk 0:02:58]}  Nc7 {[%clk 0:02:55]} 7. Nf3 {[%clk 0:02:57]}  Bd6 {[%clk 0:02:55]} 8. Ne5 {[%clk 0:02:57]}  O-O {[%clk 0:02:54]} 9. Bd3 {[%clk 0:02:54]}  c5 {[%clk 0:02:54]} 10. dxc5 {[%clk 0:02:54]}  Bxc5 {[%clk 0:02:53]} 11. Qf3 {[%clk 0:02:54]}  a6 {[%clk 0:02:50]} 12. Qh3 {[%clk 0:02:49]}  b5 {[%clk 0:02:42]} 13. Bg5 {[%clk 0:02:21]}  h6 {[%clk 0:02:01]} 14. Ng4 {[%clk 0:02:12]}  Be7 {[%clk 0:01:39]} 15. Bxh6 {[%clk 0:01:29]}  gxh6 {[%clk 0:00:58]} 16. Qxh6 {[%clk 0:01:10]}  Ne4 {[%clk 0:00:47]} 17. Nxe4 {[%clk 0:01:04]}  dxe4 {[%clk 0:00:33]} 18. Nf6+ {[%clk 0:00:36]}  Bxf6 {[%clk 0:00:29]} 19. Bxe4 {[%clk 0:00:37]}  Bc3+ {[%clk 0:00:18]} 20. bxc3 {[%clk 0:00:38]}  f5 {[%clk 0:00:18]} 21. Qg6+ {[%clk 0:00:38]}  Kh8 {[%clk 0:00:18]} 22. Qh6+ {[%clk 0:00:39]}  Kg8 {[%clk 0:00:18]} 23. Bxa8 {[%clk 0:00:36]}  Nxa8 {[%clk 0:00:18]} 24. Qg6+ {[%clk 0:00:37]}  Kh8 {[%clk 0:00:18]} 25. Rd1 {[%clk 0:00:38]}  Qc7 {[%clk 0:00:17]} 26. Rd4 {[%clk 0:00:32]}  Qxc3+ {[%clk 0:00:17]} 27. Kd1 {[%clk 0:00:23]}  f4 {[%clk 0:00:14]} 28. Re1 {[%clk 0:00:19]}  Bb7 {[%clk 0:00:12]} 29. Rd7 {[%clk 0:00:16]}  Qa1+ {[%clk 0:00:07]} 30. Kd2 {[%clk 0:00:06]}  fxe3+ {[%clk 0:00:03]} 31. fxe3 {[%clk 0:00:07]}  Rf2+ {[%clk 0:00:02]} 32. Re2 {[%clk 0:00:08]}  Rxe2+ {[%clk 0:00:02]} 33. Kxe2 {[%clk 0:00:09]}  Bf3+ {[%clk 0:00:02]} 34. gxf3 {[%clk 0:00:09]}  Qf6 {[%clk 0:00:01]} 35. Qh7# {[%clk 0:00:09]} 1-0

[Event "December 19 Late 2023"]
[Site "https://www.chess.com"]
[Date "2023.12.19"]
[Round "11"]
[White "Martinez Ramirez, Lennis"]
[Black "Khismatullin, Denis"]
[Result "0-1"]
[Board "12"]
[TimeControl "180+1"]
[WhiteFideId "3509079"]
[BlackFideId "4142578"]
[WhiteElo "2405"]
[BlackElo "2552"]
[WhiteTeam "CUB"]
[BlackTeam "RUS"]
[WhiteClock "0:00:00"]
[BlackClock "0:00:04"]

1. d4 {[%clk 0:02:52]}  Nf6 {[%clk 0:02:58]} 2. Nf3 {[%clk 0:02:52]}  e6 {[%clk 0:02:58]} 3. Bg5 {[%clk 0:02:53]}  h6 {[%clk 0:02:56]} 4. Bxf6 {[%clk 0:02:52]}  Qxf6 {[%clk 0:02:56]} 5. e4 {[%clk 0:02:53]}  d5 {[%clk 0:02:54]} 6. Nc3 {[%clk 0:02:49]}  Bb4 {[%clk 0:02:52]} 7. Bd3 {[%clk 0:02:47]}  dxe4 {[%clk 0:02:51]} 8. Bxe4 {[%clk 0:02:48]}  Kf8 {[%clk 0:02:50]} 9. O-O {[%clk 0:02:48]}  Nd7 {[%clk 0:02:45]} 10. Qd3 {[%clk 0:02:39]}  g6 {[%clk 0:02:43]} 11. Qc4 {[%clk 0:02:11]}  Bd6 {[%clk 0:02:34]} 12. Nb5 {[%clk 0:02:08]}  Qe7 {[%clk 0:02:24]} 13. Rfe1 {[%clk 0:02:00]}  Kg7 {[%clk 0:02:20]} 14. Rad1 {[%clk 0:01:57]}  Nf6 {[%clk 0:02:17]} 15. Bd3 {[%clk 0:01:50]}  Bd7 {[%clk 0:02:12]} 16. a4 {[%clk 0:01:34]}  a6 {[%clk 0:02:08]} 17. Nc3 {[%clk 0:01:34]}  Rhd8 {[%clk 0:02:01]} 18. Ne5 {[%clk 0:00:53]}  Be8 {[%clk 0:02:01]} 19. Ne4 {[%clk 0:00:46]}  b5 {[%clk 0:01:54]} 20. Qa2 {[%clk 0:00:40]}  bxa4 {[%clk 0:01:49]} 21. Nxf6 {[%clk 0:00:39]}  Qxf6 {[%clk 0:01:48]} 22. Be4 {[%clk 0:00:39]}  Rab8 {[%clk 0:01:41]} 23. Nc6 {[%clk 0:00:37]}  Bxc6 {[%clk 0:01:30]} 24. Bxc6 {[%clk 0:00:38]}  e5 {[%clk 0:01:21]} 25. dxe5 {[%clk 0:00:23]}  Bxe5 {[%clk 0:01:21]} 26. Qxa4 {[%clk 0:00:19]}  Rxd1 {[%clk 0:01:06]} 27. Rxd1 {[%clk 0:00:20]}  Rxb2 {[%clk 0:01:04]} 28. g3 {[%clk 0:00:20]}  Bd6 {[%clk 0:00:54]} 29. Rd3 {[%clk 0:00:17]}  Bc5 {[%clk 0:00:46]} 30. Rf3 {[%clk 0:00:15]}  Rb1+ {[%clk 0:00:28]} 31. Kg2 {[%clk 0:00:15]}  Qe6 {[%clk 0:00:29]} 32. Be8 {[%clk 0:00:09]}  f6 {[%clk 0:00:21]} 33. Rd3 {[%clk 0:00:08]}  Bd6 {[%clk 0:00:14]} 34. Bc6 {[%clk 0:00:06]}  Qe1 {[%clk 0:00:13]} 35. Kh3 {[%clk 0:00:03]}  Qe6+ {[%clk 0:00:08]} 36. Kg2 {[%clk 0:00:02]}  Qe1 {[%clk 0:00:09]} 37. Kh3 {[%clk 0:00:03]}  Qxf2 {[%clk 0:00:08]} 38. Bf3 {[%clk 0:00:03]}  Qf1+ {[%clk 0:00:05]} 39. Bg2 {[%clk 0:00:02]}  Qf5+ {[%clk 0:00:04]} 40. g4 {[%clk 0:00:03]}  Qe5 {[%clk 0:00:04]} 41. Qd7+ {[%clk 0:00:02]}  Kf8 {[%clk 0:00:04]} 42. Qd8+ {[%clk 0:00:02]}  Kg7 {[%clk 0:00:04]} 43. Qd7+ {[%clk 0:00:03]}  Be7 {[%clk 0:00:04]} 44. Rf3 {[%clk 0:00:00]}  Re1 {[%clk 0:00:04]} 0-1

[Event "December 19 Late 2023"]
[Site "https://www.chess.com"]
[Date "2023.12.19"]
[Round "11"]
[White "Mikaelyan, Arman"]
[Black "Manukyan, Sargis A."]
[Result "1/2-1/2"]
[Board "18"]
[TimeControl "180+1"]
[WhiteFideId "13304852"]
[BlackFideId "13303970"]
[WhiteElo "2445"]
[BlackElo "2186"]
[WhiteTeam "ARM"]
[BlackTeam "ARM"]
[WhiteClock "0:00:04"]
[BlackClock "0:00:10"]

1. d4 {[%clk 0:02:48]}  d5 {[%clk 0:02:59]} 2. c4 {[%clk 0:02:48]}  e6 {[%clk 0:03:00]} 3. Nf3 {[%clk 0:02:49]}  Nf6 {[%clk 0:03:00]} 4. Nc3 {[%clk 0:02:49]}  Be7 {[%clk 0:03:00]} 5. Bg5 {[%clk 0:02:47]}  O-O {[%clk 0:03:00]} 6. e3 {[%clk 0:02:47]}  h6 {[%clk 0:03:00]} 7. Bh4 {[%clk 0:02:46]}  b6 {[%clk 0:02:58]} 8. Bd3 {[%clk 0:02:46]}  dxc4 {[%clk 0:02:58]} 9. Bxc4 {[%clk 0:02:46]}  Bb7 {[%clk 0:02:58]} 10. O-O {[%clk 0:02:46]}  Nbd7 {[%clk 0:02:59]} 11. Qe2 {[%clk 0:02:46]}  Nd5 {[%clk 0:03:00]} 12. Bg3 {[%clk 0:02:35]}  Nxc3 {[%clk 0:02:57]} 13. bxc3 {[%clk 0:02:36]}  c5 {[%clk 0:02:58]} 14. Rfd1 {[%clk 0:02:35]}  cxd4 {[%clk 0:02:58]} 15. cxd4 {[%clk 0:02:36]}  Nf6 {[%clk 0:02:38]} 16. Ne5 {[%clk 0:02:29]}  Rc8 {[%clk 0:02:33]} 17. Ba6 {[%clk 0:02:28]}  Qd5 {[%clk 0:02:33]} 18. Bxb7 {[%clk 0:02:26]}  Qxb7 {[%clk 0:02:33]} 19. Bh4 {[%clk 0:02:09]}  Nd5 {[%clk 0:02:13]} 20. Bxe7 {[%clk 0:02:08]}  Nxe7 {[%clk 0:02:02]} 21. e4 {[%clk 0:01:55]}  Nc6 {[%clk 0:02:00]} 22. Nxc6 {[%clk 0:01:35]}  Rxc6 {[%clk 0:01:59]} 23. Rd2 {[%clk 0:01:31]}  Rd6 {[%clk 0:01:55]} 24. Rad1 {[%clk 0:01:30]}  Rfd8 {[%clk 0:01:55]} 25. h3 {[%clk 0:01:30]}  Qd7 {[%clk 0:01:50]} 26. Qe3 {[%clk 0:01:28]}  Qa4 {[%clk 0:01:49]} 27. Kh2 {[%clk 0:01:24]}  a5 {[%clk 0:01:41]} 28. d5 {[%clk 0:01:12]}  exd5 {[%clk 0:01:28]} 29. Rxd5 {[%clk 0:01:12]}  Rxd5 {[%clk 0:01:24]} 30. Rxd5 {[%clk 0:01:12]}  Rxd5 {[%clk 0:01:25]} 31. exd5 {[%clk 0:01:13]}  Qd7 {[%clk 0:01:20]} 32. Qe5 {[%clk 0:01:11]}  f6 {[%clk 0:01:13]} 33. Qb8+ {[%clk 0:00:34]}  Kf7 {[%clk 0:01:12]} 34. Qa8 {[%clk 0:00:25]}  Qd6+ {[%clk 0:01:08]} 35. g3 {[%clk 0:00:25]}  Qc5 {[%clk 0:01:05]} 36. Qb7+ {[%clk 0:00:24]}  Kg6 {[%clk 0:00:57]} 37. Kg2 {[%clk 0:00:24]}  Qd4 {[%clk 0:00:57]} 38. Qc6 {[%clk 0:00:19]}  Qe4+ {[%clk 0:00:46]} 39. Kh2 {[%clk 0:00:19]}  Qd4 {[%clk 0:00:29]} 40. Kg1 {[%clk 0:00:19]}  Kf7 {[%clk 0:00:16]} 41. Qd7+ {[%clk 0:00:19]}  Kg6 {[%clk 0:00:15]} 42. Qe6 {[%clk 0:00:17]}  Qa1+ {[%clk 0:00:13]} 43. Kg2 {[%clk 0:00:15]}  Qxa2 {[%clk 0:00:13]} 44. Qe4+ {[%clk 0:00:16]}  Kf7 {[%clk 0:00:12]} 45. d6 {[%clk 0:00:14]}  Qe6 {[%clk 0:00:12]} 46. Qb7+ {[%clk 0:00:15]}  Ke8 {[%clk 0:00:12]} 47. Qxb6 {[%clk 0:00:13]}  Qd7 {[%clk 0:00:10]} 48. Qb8+ {[%clk 0:00:11]}  Kf7 {[%clk 0:00:11]} 49. Qb3+ {[%clk 0:00:11]}  Kf8 {[%clk 0:00:10]} 50. Qd5 {[%clk 0:00:11]}  a4 {[%clk 0:00:10]} 51. f4 {[%clk 0:00:09]}  a3 {[%clk 0:00:10]} 52. f5 {[%clk 0:00:08]}  a2 {[%clk 0:00:11]} 53. Qa8+ {[%clk 0:00:07]}  Qe8 {[%clk 0:00:07]} 54. Qxa2 {[%clk 0:00:03]}  Qc6+ {[%clk 0:00:08]} 55. Kh2 {[%clk 0:00:03]}  Qxd6 {[%clk 0:00:08]} 56. Qa8+ {[%clk 0:00:03]}  Kf7 {[%clk 0:00:09]} 57. Qa2+ {[%clk 0:00:03]}  Kf8 {[%clk 0:00:09]} 58. Qa8+ {[%clk 0:00:03]}  Kf7 {[%clk 0:00:09]} 59. Qa2+ {[%clk 0:00:04]}  Kf8 {[%clk 0:00:10]} 1/2-1/2

[Event "December 19 Late 2023"]
[Site "https://www.chess.com"]
[Date "2023.12.19"]
[Round "11"]
[White "Pakleza, Zbigniew"]
[Black "Assylov, Miras"]
[Result "1-0"]
[Board "20"]
[TimeControl "180+1"]
[WhiteFideId "1119290"]
[BlackFideId "13728873"]
[WhiteElo "2410"]
[BlackElo "1991"]
[WhiteTeam "POL"]
[BlackTeam "KAZ"]
[WhiteClock "0:01:17"]
[BlackClock "0:00:00"]

1. d4 {[%clk 0:03:00]}  Nf6 {[%clk 0:02:55]} 2. Nf3 {[%clk 0:03:01]}  g6 {[%clk 0:02:54]} 3. Bf4 {[%clk 0:03:01]}  Bg7 {[%clk 0:02:54]} 4. e3 {[%clk 0:03:02]}  d6 {[%clk 0:02:54]} 5. h3 {[%clk 0:03:02]}  O-O {[%clk 0:02:54]} 6. Be2 {[%clk 0:03:03]}  c5 {[%clk 0:02:55]} 7. c3 {[%clk 0:03:03]}  Qb6 {[%clk 0:02:55]} 8. Qb3 {[%clk 0:03:03]}  Be6 {[%clk 0:02:56]} 9. Qxb6 {[%clk 0:03:03]}  axb6 {[%clk 0:02:57]} 10. a3 {[%clk 0:03:04]}  Bd5 {[%clk 0:02:57]} 11. Nbd2 {[%clk 0:03:04]}  Bc6 {[%clk 0:02:49]} 12. O-O {[%clk 0:03:04]}  Nbd7 {[%clk 0:02:46]} 13. Bh2 {[%clk 0:03:01]}  Rfe8 {[%clk 0:02:18]} 14. Rfd1 {[%clk 0:02:57]}  b5 {[%clk 0:02:03]} 15. dxc5 {[%clk 0:02:52]}  dxc5 {[%clk 0:01:58]} 16. Ne5 {[%clk 0:02:52]}  Nxe5 {[%clk 0:01:54]} 17. Bxe5 {[%clk 0:02:53]}  Nd7 {[%clk 0:01:54]} 18. Bxg7 {[%clk 0:02:52]}  Kxg7 {[%clk 0:01:55]} 19. Bf3 {[%clk 0:02:39]}  Nb6 {[%clk 0:01:26]} 20. Bxc6 {[%clk 0:02:33]}  bxc6 {[%clk 0:01:26]} 21. Ne4 {[%clk 0:02:32]}  c4 {[%clk 0:01:21]} 22. Nc5 {[%clk 0:02:30]}  Red8 {[%clk 0:01:16]} 23. e4 {[%clk 0:02:12]}  Rd6 {[%clk 0:00:40]} 24. Kf1 {[%clk 0:02:02]}  f5 {[%clk 0:00:20]} 25. exf5 {[%clk 0:01:51]}  gxf5 {[%clk 0:00:21]} 26. Rxd6 {[%clk 0:01:50]}  exd6 {[%clk 0:00:22]} 27. Ne6+ {[%clk 0:01:51]}  Kf6 {[%clk 0:00:22]} 28. Nd4 {[%clk 0:01:52]}  Rc8 {[%clk 0:00:22]} 29. Re1 {[%clk 0:01:50]}  Na4 {[%clk 0:00:09]} 30. Re6+ {[%clk 0:01:49]}  Kg5 {[%clk 0:00:05]} 31. g3 {[%clk 0:01:20]}  Nxb2 {[%clk 0:00:04]} 32. f4+ {[%clk 0:01:16]}  Kh5 {[%clk 0:00:00]} 33. Nxf5 {[%clk 0:01:17]} 1-0

[Event "December 19 Late 2023"]
[Site "https://www.chess.com"]
[Date "2023.12.19"]
[Round "11"]
[White "Adewumi, Tanitoluwa"]
[Black "Ibarra Jerez, Jose Carlos"]
[Result "0-1"]
[Board "21"]
[TimeControl "180+1"]
[WhiteFideId "30966396"]
[BlackFideId "2226332"]
[WhiteElo "2325"]
[BlackElo "2634"]
[WhiteTeam "USA"]
[BlackTeam "ESP"]
[WhiteClock "0:00:15"]
[BlackClock "0:01:01"]

1. e4 {[%clk 0:02:48]}  c5 {[%clk 0:02:59]} 2. Nf3 {[%clk 0:02:48]}  Nc6 {[%clk 0:02:57]} 3. Bb5 {[%clk 0:02:48]}  e6 {[%clk 0:02:57]} 4. Bxc6 {[%clk 0:02:47]}  bxc6 {[%clk 0:02:57]} 5. b3 {[%clk 0:02:47]}  e5 {[%clk 0:02:55]} 6. Bb2 {[%clk 0:02:22]}  d6 {[%clk 0:02:55]} 7. c3 {[%clk 0:02:22]}  f5 {[%clk 0:02:54]} 8. exf5 {[%clk 0:02:21]}  e4 {[%clk 0:02:53]} 9. Qe2 {[%clk 0:02:16]}  Qe7 {[%clk 0:02:52]} 10. Ng1 {[%clk 0:02:13]}  Bxf5 {[%clk 0:02:50]} 11. Qa6 {[%clk 0:01:57]}  Rc8 {[%clk 0:02:44]} 12. Ne2 {[%clk 0:01:56]}  Nf6 {[%clk 0:02:41]} 13. O-O {[%clk 0:01:56]}  Qd7 {[%clk 0:02:37]} 14. Ng3 {[%clk 0:01:53]}  Bg6 {[%clk 0:02:37]} 15. Re1 {[%clk 0:01:52]}  Be7 {[%clk 0:02:37]} 16. d4 {[%clk 0:01:44]}  exd3 {[%clk 0:02:25]} 17. Qc4 {[%clk 0:01:30]}  d5 {[%clk 0:02:08]} 18. Qxc5 {[%clk 0:01:25]}  Ne4 {[%clk 0:02:08]} 19. Nxe4 {[%clk 0:01:09]}  dxe4 {[%clk 0:02:04]} 20. Qc4 {[%clk 0:01:04]}  Qd5 {[%clk 0:02:03]} 21. Nd2 {[%clk 0:01:00]}  O-O {[%clk 0:01:31]} 22. Nxe4 {[%clk 0:00:30]}  Qxc4 {[%clk 0:01:13]} 23. bxc4 {[%clk 0:00:31]}  Bxe4 {[%clk 0:01:13]} 24. Rxe4 {[%clk 0:00:30]}  Bc5 {[%clk 0:01:13]} 25. Bc1 {[%clk 0:00:24]}  Rxf2 {[%clk 0:01:06]} 26. Be3 {[%clk 0:00:24]}  Re2 {[%clk 0:01:01]} 27. Bxc5 {[%clk 0:00:15]}  Rxe4 {[%clk 0:01:02]} 28. Rd1 {[%clk 0:00:15]}  Rxc4 {[%clk 0:01:01]} 29. Bd4 {[%clk 0:00:16]}  c5 {[%clk 0:01:01]} 30. Be5 {[%clk 0:00:15]}  Re8 {[%clk 0:01:01]} 0-1

[Event "December 19 Late 2023"]
[Site "https://www.chess.com"]
[Date "2023.12.19"]
[Round "11"]
[White "Zhigalko, Sergei"]
[Black "Dyachuk, Artem"]
[Result "0-1"]
[Board "22"]
[TimeControl "180+1"]
[WhiteFideId "13502956"]
[BlackFideId "34107924"]
[WhiteElo "2616"]
[BlackElo "2244"]
[WhiteTeam "BLR"]
[BlackTeam "UKR"]
[WhiteClock "0:00:00"]
[BlackClock "0:00:03"]

1. e4 {[%clk 0:03:00]}  e5 {[%clk 0:02:59]} 2. Nf3 {[%clk 0:03:01]}  Nc6 {[%clk 0:02:58]} 3. Bb5 {[%clk 0:03:00]}  a6 {[%clk 0:02:57]} 4. Ba4 {[%clk 0:03:00]}  Nf6 {[%clk 0:02:58]} 5. O-O {[%clk 0:02:59]}  Bc5 {[%clk 0:02:56]} 6. d3 {[%clk 0:02:55]}  b5 {[%clk 0:02:54]} 7. Bb3 {[%clk 0:02:55]}  O-O {[%clk 0:02:54]} 8. Nc3 {[%clk 0:02:50]}  d6 {[%clk 0:02:47]} 9. a4 {[%clk 0:02:47]}  b4 {[%clk 0:02:45]} 10. Nd5 {[%clk 0:02:47]}  Nxd5 {[%clk 0:02:44]} 11. Bxd5 {[%clk 0:02:48]}  Bd7 {[%clk 0:02:42]} 12. Bg5 {[%clk 0:02:32]}  Qe8 {[%clk 0:02:40]} 13. Be3 {[%clk 0:02:32]}  Bxe3 {[%clk 0:02:31]} 14. fxe3 {[%clk 0:02:32]}  Be6 {[%clk 0:02:23]} 15. Qe1 {[%clk 0:01:55]}  Rb8 {[%clk 0:02:18]} 16. b3 {[%clk 0:01:43]}  Ne7 {[%clk 0:02:12]} 17. Bxe6 {[%clk 0:01:35]}  fxe6 {[%clk 0:02:13]} 18. Qe2 {[%clk 0:01:28]}  Ng6 {[%clk 0:02:11]} 19. Rf2 {[%clk 0:01:24]}  Qe7 {[%clk 0:01:45]} 20. Raf1 {[%clk 0:01:22]}  Rf6 {[%clk 0:01:45]} 21. d4 {[%clk 0:01:21]}  exd4 {[%clk 0:01:42]} 22. exd4 {[%clk 0:01:20]}  Ra8 {[%clk 0:01:21]} 23. Qc4 {[%clk 0:01:05]}  a5 {[%clk 0:01:04]} 24. Qc6 {[%clk 0:01:01]}  Raf8 {[%clk 0:00:53]} 25. Qa6 {[%clk 0:00:58]}  Nf4 {[%clk 0:00:49]} 26. Qxa5 {[%clk 0:00:58]}  Qf7 {[%clk 0:00:37]} 27. e5 {[%clk 0:00:31]}  Rg6 {[%clk 0:00:30]} 28. Kh1 {[%clk 0:00:26]}  Nd5 {[%clk 0:00:26]} 29. h3 {[%clk 0:00:17]}  Qe8 {[%clk 0:00:09]} 30. exd6 {[%clk 0:00:14]}  cxd6 {[%clk 0:00:09]} 31. Qa6 {[%clk 0:00:05]}  h6 {[%clk 0:00:07]} 32. Qxd6 {[%clk 0:00:05]}  Nf6 {[%clk 0:00:04]} 33. Ne5 {[%clk 0:00:04]}  Rg5 {[%clk 0:00:04]} 34. Qc6 {[%clk 0:00:04]}  Qd8 {[%clk 0:00:03]} 35. Qxe6+ {[%clk 0:00:03]}  Kh7 {[%clk 0:00:04]} 36. Nf7 {[%clk 0:00:03]}  Qxd4 {[%clk 0:00:03]} 37. Nxg5+ {[%clk 0:00:03]}  hxg5 {[%clk 0:00:03]} 38. Qf5+ {[%clk 0:00:03]}  Kh6 {[%clk 0:00:04]} 39. Qd3 {[%clk 0:00:03]}  Qc5 {[%clk 0:00:04]} 40. Qd2 {[%clk 0:00:03]}  Ne4 {[%clk 0:00:03]} 41. Rxf8 {[%clk 0:00:01]}  Nxd2 {[%clk 0:00:03]} 42. R1f5 {[%clk 0:00:01]}  Qd4 {[%clk 0:00:03]} 43. Kh2 {[%clk 0:00:01]}  Ne4 {[%clk 0:00:03]} 44. Re8 {[%clk 0:00:01]}  Qd6+ {[%clk 0:00:03]} 45. Kh1 {[%clk 0:00:01]}  Ng3+ {[%clk 0:00:02]} 46. Kg1 {[%clk 0:00:02]}  Nxf5 {[%clk 0:00:03]} 47. Rd8 {[%clk 0:00:00]}  Qxd8 {[%clk 0:00:03]} 0-1